bitfinex/quotes_BTCUSD_20250714
["timestamp","ask_amount","ask_price","bid_price","bid_amount"]
[1752496955010,0.32039434,121630.0,121620.0,0.01632529]
[1752496955267,0.44683434,121630.0,121620.0,0.01632529]
[1752496955430,0.44683434,121630.0,121620.0,0.0163229]
[1752496955631,0.32039434,121630.0,121620.0,0.0163229]
[1752496955844,0.44683434,121630.0,121620.0,0.0163229]
[1752496957143,0.32039434,121630.0,121620.0,0.0163229]
[1752496958040,0.44679434,121630.0,121620.0,0.0163229]
[1752496958293,0.84679434,121630.0,121620.0,0.0163229]
[1752496959894,0.44679434,121630.0,121620.0,0.0163229]
[1752496960831,0.44671434,121630.0,121620.0,0.0163229]
[1752496961299,0.44671434,121630.0,121620.0,0.001]
[1752496961535,0.44671434,121630.0,121620.0,0.01632321]
[1752496961995,0.44671434,121630.0,121620.0,0.01632347]
[1752496963606,0.32039434,121630.0,121620.0,0.01632347]
[1752496963837,0.84663434,121630.0,121620.0,0.01632347]
[1752496966506,0.83019124,121630.0,121610.0,0.63160967]
[1752496966747,0.26223805,121620.0,121610.0,0.45055376]
[1752496966984,0.27045997,121620.0,121610.0,0.45568376]
[1752496967829,0.2786823,121620.0,121610.0,0.45668376]
[1752496968070,0.27046038,121620.0,121610.0,0.45668376]
[1752496968607,0.27046038,121620.0,121610.0,0.32738376]
[1752496968836,0.26223826,121620.0,121610.0,0.32738376]
[1752496969062,0.28078607,121620.0,121610.0,0.12931]
[1752496969282,0.28380607,121620.0,121610.0,0.12931]
[1752496969755,0.30980607,121620.0,121610.0,0.001]
[1752496969979,0.30980607,121620.0,121610.0,0.12716]
[1752496970879,0.30980607,121620.0,121610.0,0.001]
[1752496971094,0.30980607,121620.0,121610.0,0.12716]
[1752496971305,0.30980607,121620.0,121610.0,0.12616]
[1752496972233,0.31180607,121620.0,121610.0,0.12716]
[1752496973232,0.63603983,121620.0,121610.0,0.001]
[1752496973437,0.76219983,121620.0,121610.0,0.001]
[1752496973641,1.16219983,121620.0,121610.0,0.001]
[1752496974445,0.22398302,121610.0,121600.0,0.12816]
[1752496974695,0.30942013,121610.0,121600.0,0.12816]
[1752496974927,0.30942013,121610.0,121600.0,0.002]
[1752496975599,0.63365389,121610.0,121600.0,0.002]
[1752496975823,0.43558013,121610.0,121600.0,0.002]
[1752496976262,0.31342013,121610.0,121600.0,0.003]
[1752496976482,0.43958013,121610.0,121600.0,0.003]
[1752496976696,0.44158013,121610.0,121600.0,0.003]
[1752496977208,0.84158013,121610.0,121600.0,0.003]
[1752496978640,0.84158013,121610.0,121600.0,0.01833833]
[1752496978863,0.84158013,121610.0,121600.0,0.003]
[1752496979083,0.84158013,121610.0,121600.0,0.01833987]
[1752496979292,1.16581389,121610.0,121600.0,0.01833987]
[1752496979736,0.84158013,121610.0,121600.0,0.01833987]
[1752496980435,0.65419474,121610.0,121600.0,0.01833987]
[1752496980666,0.32996098,121610.0,121600.0,0.01833987]
[1752496980904,0.78035474,121610.0,121600.0,0.01833987]
[1752496981343,0.78035474,121610.0,121600.0,0.01834008]
[1752496981568,0.45612098,121610.0,121600.0,0.01834008]
[1752496981802,0.45612098,121610.0,121600.0,0.003]
[1752496982034,0.32996098,121610.0,121600.0,0.003]
[1752496982258,0.45624098,121610.0,121600.0,0.003]
[1752496982483,0.65419474,121610.0,121600.0,0.003]
[1752496982705,0.78047474,121610.0,121600.0,0.003]
[1752496983152,0.65419474,121610.0,121600.0,0.003]
[1752496983389,0.78047474,121610.0,121600.0,0.003]
[1752496983608,0.45628098,121610.0,121600.0,0.003]
[1752496983820,0.78051474,121610.0,121600.0,0.003]
[1752496984262,0.32996098,121610.0,121600.0,0.003]
[1752496984485,0.31542013,121610.0,121600.0,0.003]
[1752496984673,0.44170013,121610.0,121600.0,0.003]
[1752496985569,0.31542013,121610.0,121600.0,0.003]
[1752496985771,0.44170013,121610.0,121600.0,0.003]
[1752496986047,0.31542013,121610.0,121600.0,0.003]
[1752496986494,0.44174013,121610.0,121600.0,0.003]
[1752496987577,0.44174013,121610.0,121600.0,0.00515]
[1752496987791,0.28992013,121610.0,121600.0,0.00515]
[1752496987995,0.38992013,121610.0,121600.0,0.00515]
[1752496988217,0.39512293,121610.0,121600.0,0.00515]
[1752496988429,0.49353293,121610.0,121600.0,0.33236376]
[1752496989263,0.48738013,121610.0,121600.0,0.00515]
[1752496989471,0.51636013,121610.0,121600.0,0.00515]
[1752496989928,0.39012013,121610.0,121600.0,0.00515]
[1752496990147,0.51636013,121610.0,121600.0,0.00515]
[1752496990597,0.86659389,121610.0,121600.0,0.003]
[1752496990814,0.86655389,121610.0,121600.0,0.003]
[1752496993814,0.54232013,121610.0,121600.0,0.003]
[1752496994026,0.54228013,121610.0,121600.0,0.003]
[1752496995085,0.39012013,121610.0,121600.0,0.003]
[1752496995319,0.51326013,121610.0,121600.0,0.32938376]
[1752496995734,0.51326013,121610.0,121600.0,0.00515]
[1752496996233,0.51326013,121610.0,121600.0,0.32938376]
[1752496997873,0.51326013,121610.0,121600.0,0.00515]
[1752496998716,0.79029013,121610.0,121600.0,0.00515]
[1752496998924,0.91645013,121610.0,121600.0,0.00515]
[1752497000457,0.91645013,121610.0,121600.0,0.38446376]
[1752497000458,0.38469818,121610.0,121600.0,0.38446376]
[1752497000670,0.37647518,121610.0,121600.0,0.38446376]
[1752497001113,0.18734711,121610.0,121600.0,1.17485752]
[1752497001584,0.18734711,121610.0,121600.0,1.04869752]
[1752497001790,0.18734711,121610.0,121600.0,1.17485752]
[1752497002226,0.106,121610.0,121600.0,1.22139481]
[1752497002442,0.106,121610.0,121600.0,1.3393312]
[1752497002662,0.102,121610.0,121600.0,1.36316898]
[1752497002883,0.105,121610.0,121600.0,1.36416898]
[1752497003086,0.102,121610.0,121600.0,1.37849253]
[1752497003316,0.102,121610.0,121600.0,1.38671607]
[1752497003518,0.102,121610.0,121600.0,1.20579524]
[1752497003730,0.102,121610.0,121600.0,2.23511124]
[1752497003942,0.102,121610.0,121600.0,2.25155826]
[1752497004157,0.104,121610.0,121600.0,2.24433492]
[1752497004368,0.104,121610.0,121600.0,2.22901137]
[1752497004574,0.104,121610.0,121600.0,2.26077371]
[1752497004821,0.104,121610.0,121600.0,2.0716292]
[1752497005042,0.104,121610.0,121600.0,2.07162201]
[1752497005734,0.102,121610.0,121600.0,1.94546201]
[1752497005937,0.102,121610.0,121600.0,2.06323152]
[1752497006597,0.103,121610.0,121600.0,1.87960252]
[1752497006813,0.103,121610.0,121600.0,1.41049252]
[1752497007028,0.102,121610.0,121600.0,1.41049252]
[1752497007238,0.102,121610.0,121600.0,1.53665252]
[1752497009579,0.102,121610.0,121600.0,1.58318988]
[1752497009788,0.102,121610.0,121600.0,1.71757349]
[1752497010006,0.102,121610.0,121600.0,1.53665252]
[1752497010207,0.102,121610.0,121600.0,1.5448762]
[1752497010459,0.102,121610.0,121600.0,1.41049252]
[1752497010676,0.102,121610.0,121600.0,1.56148045]
[1752497010887,0.102,121610.0,121600.0,1.56970413]
[1752497011631,0.102,121610.0,121600.0,1.44358413]
[1752497011835,0.102,121610.0,121600.0,1.56148045]
[1752497012087,0.0921429,121610.0,121600.0,1.56970413]
[1752497012293,0.0921429,121610.0,121600.0,1.56148045]
[1752497012504,0.0921429,121610.0,121600.0,1.43536045]
[1752497012726,0.0921429,121610.0,121600.0,1.74240101]
[1752497012951,0.0921429,121610.0,121600.0,1.44358413]
[1752497013149,0.0921429,121610.0,121600.0,1.56970413]
[1752497013393,0.0921429,121610.0,121600.0,1.56967324]
[1752497014051,0.0921429,121610.0,121600.0,1.60802692]
[1752497014285,0.0921429,121610.0,121600.0,1.44355324]
[1752497014498,0.0921429,121610.0,121600.0,1.56967324]
[1752497014716,0.0921429,121610.0,121600.0,1.57789685]
[1752497014924,0.0921429,121610.0,121600.0,1.56144956]
[1752497015342,0.0921429,121610.0,121600.0,1.60802685]
[1752497015600,0.0921429,121610.0,121600.0,1.74237039]
[1752497015840,5.102e-05,121630.0,121600.0,1.74237039]
[1752497015841,5.102e-05,121630.0,121620.0,0.16444663]
[1752497016066,5.102e-05,121630.0,121620.0,0.93808452]
[1752497016291,5.102e-05,121630.0,121620.0,5.93808452]
[1752497016509,5.102e-05,121630.0,121620.0,6.06718452]
[1752497016739,5.102e-05,121630.0,121620.0,6.34993139]
[1752497016932,5.102e-05,121630.0,121620.0,6.67416515]
[1752497017207,0.00105102,121630.0,121620.0,6.47705139]
[1752497017439,5.102e-05,121630.0,121620.0,6.47605139]
[1752497017669,5.102e-05,121630.0,121620.0,6.47905139]
[1752497017900,0.00105102,121630.0,121620.0,6.48105139]
[1752497018144,0.00105102,121630.0,121620.0,6.35493139]
[1752497018390,0.00105102,121630.0,121620.0,6.37282711]
[1752497018605,0.00105102,121630.0,121620.0,6.48105139]
[1752497019452,0.00105102,121630.0,121620.0,6.35493139]
[1752497019695,0.00105102,121630.0,121620.0,6.48105139]
[1752497020376,0.002,121650.0,121640.0,0.91855631]
[1752497020599,0.00205102,121650.0,121640.0,6.01730053]
[1752497020833,0.00205102,121650.0,121640.0,6.66576805]
[1752497021057,0.00205102,121650.0,121640.0,6.79486805]
[1752497021733,0.00205102,121650.0,121640.0,6.34451429]
[1752497021956,0.00205102,121650.0,121640.0,6.45535718]
[1752497022399,0.00305102,121650.0,121640.0,6.47353647]
[1752497022622,0.00305102,121650.0,121640.0,6.47453647]
[1752497023085,0.00305102,121650.0,121640.0,6.47353647]
[1752497023396,0.00305102,121650.0,121640.0,6.47553647]
[1752497023608,0.00305102,121650.0,121640.0,6.50017047]
[1752497024238,0.00305102,121650.0,121640.0,6.37409047]
[1752497024452,0.00305102,121650.0,121640.0,6.50017047]
[1752497025115,0.00305102,121650.0,121640.0,6.50014471]
[1752497029014,0.00305102,121650.0,121640.0,6.37406471]
[1752497029235,0.00305102,121650.0,121640.0,6.50010471]
[1752497030500,0.00305102,121650.0,121640.0,6.37406471]
[1752497030719,0.00305102,121650.0,121640.0,6.48491118]
[1752497030917,0.00305102,121650.0,121640.0,6.50009827]
[1752497032039,0.00305102,121650.0,121640.0,6.79753203]
[1752497032243,0.00305102,121650.0,121640.0,6.52329827]
[1752497032686,0.00305102,121650.0,121640.0,6.64933827]
[1752497032891,0.00305102,121650.0,121640.0,6.64733827]
[1752497033101,0.00205102,121650.0,121640.0,6.64733827]
[1752497033584,0.00305102,121650.0,121640.0,6.65333827]
[1752497033818,0.00305102,121650.0,121640.0,6.52729376]
[1752497034049,0.002,121670.0,121660.0,1.24445899]
[1752497034274,0.00205102,121670.0,121660.0,6.76541868]
[1752497034719,0.00205102,121670.0,121660.0,6.81843868]
[1752497034939,0.00205102,121670.0,121660.0,6.69239868]
[1752497035160,0.00205102,121670.0,121660.0,6.81843868]
[1752497035387,0.00205102,121670.0,121660.0,6.84306568]
[1752497035825,0.00305102,121670.0,121660.0,6.84506568]
[1752497036295,0.00305102,121670.0,121660.0,6.66902568]
[1752497036512,0.00305102,121670.0,121660.0,6.84506568]
[1752497036735,0.002,121690.0,121680.0,1.61790167]
[1752497036958,0.002,121690.0,121680.0,6.55320502]
[1752497037208,0.002,121690.0,121680.0,6.55622502]
[1752497038317,0.002,121690.0,121680.0,6.43559502]
[1752497038552,0.002,121710.0,121700.0,0.54352933]
[1752497038791,0.002,121710.0,121700.0,6.32679396]
[1752497038792,0.00212586,121710.0,121700.0,6.32679396]
[1752497039013,0.00212586,121710.0,121700.0,6.47908156]
[1752497039232,0.00212586,121710.0,121700.0,6.46420584]
[1752497039451,0.00212586,121710.0,121700.0,4.49008308]
[1752497040132,0.00212586,121710.0,121700.0,4.78747684]
[1752497040355,0.00212586,121710.0,121700.0,6.56348584]
[1752497040568,0.00212586,121710.0,121700.0,6.23925208]
[1752497040790,0.00212586,121710.0,121700.0,5.80882208]
[1752497041023,0.00212586,121710.0,121700.0,5.93490208]
[1752497041354,0.00212586,121710.0,121700.0,6.23925208]
[1752497041576,0.00212586,121710.0,121700.0,6.43840584]
[1752497041787,0.00212586,121710.0,121700.0,6.56785584]
[1752497041991,0.00212586,121710.0,121700.0,6.44181584]
[1752497042198,0.00212586,121710.0,121700.0,6.56885584]
[1752497042440,0.00212586,121710.0,121700.0,6.49281584]
[1752497042642,0.0022,121730.0,121720.0,0.54349828]
[1752497042853,0.0022,121730.0,121720.0,6.65092291]
[1752497043061,0.0022,121730.0,121720.0,6.65394291]
[1752497043278,0.0022,121730.0,121720.0,6.69527855]
[1752497043904,0.0022,121730.0,121720.0,6.7200559]
[1752497044385,0.0022,121730.0,121720.0,6.61604891]
[1752497044649,0.0022,121730.0,121720.0,6.74204891]
[1752497045716,1e-08,121730.0,121720.0,6.99295402]
[1752497045895,1e-08,121730.0,121720.0,6.84228891]
[1752497046173,1e-08,121730.0,121720.0,6.71628891]
[1752497046393,1e-08,121730.0,121720.0,1.14721274]
[1752497046612,1e-08,121730.0,121720.0,4.58686726]
[1752497046832,0.00100001,121730.0,121720.0,3.06888241]
[1752497047040,0.00100001,121730.0,121720.0,2.95067141]
[1752497047246,0.00100001,121730.0,121720.0,3.09157226]
[1752497047483,0.00100001,121730.0,121720.0,4.91047726]
[1752497047697,1e-08,121730.0,121720.0,4.83429726]
[1752497047902,1e-08,121730.0,121720.0,4.76925026]
[1752497048106,1e-08,121730.0,121720.0,4.52822126]
[1752497048313,1e-08,121730.0,121720.0,3.38333936]
[1752497048516,1e-08,121730.0,121720.0,1.94969122]
[1752497048517,0.00196001,121730.0,121720.0,1.94969122]
[1752497048756,0.05487001,121730.0,121720.0,1.93202021]
[1752497048929,0.05487001,121730.0,121720.0,2.05838021]
[1752497049169,0.05487001,121730.0,121720.0,1.94656106]
[1752497049371,0.05166001,121730.0,121720.0,2.0801365]
[1752497049516,0.05166001,121730.0,121720.0,3.52315659]
[1752497049719,1e-08,121730.0,121720.0,3.6557537]
[1752497049993,0.00200001,121730.0,121720.0,3.8349737]
[1752497050200,0.00200001,121730.0,121720.0,3.8369737]
[1752497050433,0.00200001,121730.0,121720.0,3.8370137]
[1752497050675,0.00200001,121730.0,121720.0,7.19756946]
[1752497050894,0.0002,121760.0,121750.0,0.64488173]
[1752497051120,0.0002,121760.0,121750.0,6.55109636]
[1752497051347,0.0002,121760.0,121750.0,6.42986636]
[1752497051348,0.00071051,121760.0,121750.0,6.42986636]
[1752497051571,0.00071051,121760.0,121750.0,6.48071601]
[1752497052007,0.00071051,121760.0,121750.0,6.60711601]
[1752497052219,0.00071051,121760.0,121750.0,6.53071601]
[1752497052433,0.00071051,121760.0,121750.0,6.63150037]
[1752497052652,0.00071051,121760.0,121750.0,6.50514037]
[1752497052868,0.00071051,121760.0,121750.0,6.60950736]
[1752497053082,0.00071051,121760.0,121750.0,6.4659221]
[1752497053304,0.00071051,121760.0,121750.0,6.09732668]
[1752497053523,0.00071051,121760.0,121750.0,6.59391115]
[1752497053771,0.00071051,121760.0,121750.0,6.69584679]
[1752497053988,0.00071051,121760.0,121750.0,6.59391115]
[1752497054223,0.00071051,121760.0,121750.0,6.48466468]
[1752497054657,0.00071051,121760.0,121750.0,6.61098468]
[1752497054876,0.00071051,121760.0,121750.0,6.56098468]
[1752497055122,0.00071051,121760.0,121750.0,6.40866468]
[1752497055337,0.00071051,121760.0,121750.0,6.45866468]
[1752497055545,0.00071051,121760.0,121750.0,6.58498468]
[1752497055763,0.00071051,121760.0,121750.0,6.45866468]
[1752497055983,0.00071051,121760.0,121750.0,6.58498468]
[1752497056191,0.00071051,121760.0,121750.0,6.56028468]
[1752497056420,0.00071051,121760.0,121750.0,6.48396468]
[1752497056662,0.00071051,121760.0,121750.0,1.61028468]
[1752497056877,0.00071051,121760.0,121750.0,6.61028468]
[1752497057068,0.00071051,121760.0,121750.0,6.53498468]
[1752497057297,0.00071051,121760.0,121750.0,6.45866468]
[1752497057511,0.00071051,121760.0,121750.0,6.50814468]
[1752497059039,0.00071051,121760.0,121750.0,6.50810468]
[1752497059513,0.00071051,121760.0,121750.0,6.50810741]
[1752497059722,0.00071051,121760.0,121750.0,6.55980741]
[1752497062573,0.00071051,121760.0,121750.0,6.559825]
[1752497063253,0.00071051,121760.0,121750.0,6.533425]
[1752497063787,0.00071051,121760.0,121750.0,1.533425]
[1752497063984,0.00071051,121760.0,121750.0,6.533425]
[1752497064424,0.00071051,121760.0,121750.0,6.560125]
[1752497066044,0.00071051,121760.0,121750.0,6.533265]
[1752497067330,0.00071051,121760.0,121750.0,6.507965]
[1752497069522,0.00071051,121760.0,121750.0,6.999465]
[1752497070652,0.00071051,121760.0,121750.0,6.873385]
[1752497070837,0.00071051,121760.0,121750.0,6.999425]
[1752497071010,0.00071051,121760.0,121750.0,6.9842621]
[1752497071235,0.00071051,121760.0,121750.0,6.99945852]
[1752497072648,0.00071051,121760.0,121750.0,6.87341852]
[1752497072866,0.00071051,121760.0,121750.0,6.99937852]
[1752497073094,0.00071051,121760.0,121750.0,7.01454766]
[1752497074668,0.00071051,121760.0,121750.0,2.01454766]
[1752497074887,0.00071051,121760.0,121750.0,7.01454766]
[1752497076824,0.05501051,121760.0,121750.0,7.01152766]
[1752497077285,0.02791051,121760.0,121750.0,7.01152766]
[1752497077489,0.02791051,121760.0,121750.0,7.01462766]
[1752497078530,0.02791051,121760.0,121750.0,6.52312766]
[1752497079894,0.02791051,121760.0,121750.0,6.71996841]
[1752497080335,0.05501051,121760.0,121750.0,6.71686841]
[1752497081397,0.05501051,121760.0,121750.0,1.71686841]
[1752497081614,0.05501051,121760.0,121750.0,6.71996841]
[1752497082423,0.06023051,121760.0,121750.0,3.87819041]
[1752497082651,0.06023051,121760.0,121750.0,2.16383928]
[1752497082890,0.06023051,121760.0,121750.0,0.84820487]
[1752497083109,0.06023051,121760.0,121750.0,0.97412487]
[1752497083380,0.06023051,121760.0,121750.0,0.9588877]
[1752497083606,0.06023051,121760.0,121750.0,1.2988877]
[1752497083828,0.06023051,121760.0,121750.0,1.31342855]
[1752497084043,0.06023051,121760.0,121750.0,1.2988877]
[1752497084286,0.06023051,121760.0,121750.0,0.8329677]
[1752497084504,0.06023051,121760.0,121750.0,0.7695597]
[1752497084720,0.06023051,121760.0,121750.0,0.7665597]
[1752497084957,0.06023051,121760.0,121750.0,0.39187701]
[1752497085172,0.06023051,121760.0,121750.0,0.73287701]
[1752497085387,0.06023051,121760.0,121750.0,1.57723901]
[1752497085607,0.06023051,121760.0,121750.0,1.57453201]
[1752497085811,0.06323051,121760.0,121750.0,1.57453201]
[1752497086256,0.06323051,121760.0,121750.0,1.44861201]
[1752497086465,0.06323051,121760.0,121750.0,1.57453201]
[1752497087121,0.06323051,121760.0,121750.0,1.55382101]
[1752497087328,0.06323051,121760.0,121750.0,1.43552901]
[1752497087539,0.06323051,121760.0,121750.0,0.90285601]
[1752497087745,0.06323051,121760.0,121750.0,0.84690701]
[1752497088375,0.06323051,121760.0,121750.0,0.72098701]
[1752497088584,0.06323051,121760.0,121750.0,0.4491257]
[1752497089448,0.06323051,121760.0,121750.0,0.7891257]
[1752497090741,0.22748806,121760.0,121750.0,0.7891257]
[1752497091206,0.06323051,121760.0,121750.0,0.7891257]
[1752497091436,0.07144278,121760.0,121750.0,0.7891257]
[1752497091669,0.23570033,121760.0,121750.0,0.7891257]
[1752497091883,0.06323051,121760.0,121750.0,0.7891257]
[1752497092321,0.23570033,121760.0,121750.0,0.7891257]
[1752497092542,0.24391273,121760.0,121750.0,0.7891257]
[1752497092792,0.24391266,121760.0,121750.0,0.7891257]
[1752497093012,0.33347224,121760.0,121750.0,0.34]
[1752497093230,0.34168484,121760.0,121750.0,0.46596]
[1752497093442,0.31704744,121760.0,121750.0,0.46596]
[1752497093649,0.32525977,121760.0,121750.0,0.46596]
[1752497093856,0.31704744,121760.0,121750.0,0.7891657]
[1752497094286,0.16100236,121760.0,121750.0,0.6632057]
[1752497094503,0.16921469,121760.0,121750.0,0.6632057]
[1752497094721,0.15278989,121760.0,121750.0,0.7891657]
[1752497095365,0.14457762,121760.0,121750.0,0.6632057]
[1752497095572,0.14457762,121760.0,121750.0,0.7891657]
[1752497095780,0.15278989,121760.0,121750.0,0.7891657]
[1752497096706,0.14457762,121760.0,121750.0,0.7891657]
[1752497097504,0.14457762,121760.0,121750.0,0.78907418]
[1752497100420,0.14457762,121760.0,121750.0,0.66311418]
[1752497100623,0.14457762,121760.0,121750.0,0.78907418]
[1752497101985,0.14457762,121760.0,121750.0,0.46586848]
[1752497102252,0.14457762,121760.0,121750.0,0.66311418]
[1752497102484,0.14457762,121760.0,121750.0,0.46586848]
[1752497102733,0.14457762,121760.0,121750.0,0.78907418]
[1752497103889,0.14457762,121760.0,121750.0,0.66311418]
[1752497104456,0.14457762,121760.0,121750.0,0.78907418]
[1752497106160,0.30883517,121760.0,121750.0,0.33990848]
[1752497106364,0.32525991,121760.0,121750.0,0.78907418]
[1752497106819,0.33347231,121760.0,121750.0,0.78907418]
[1752497107251,0.18069771,121750.0,121720.0,0.002]
[1752497107459,0.0265,121740.0,121730.0,0.3232057]
[1752497107673,0.02955,121740.0,121730.0,0.4491657]
[1752497107840,0.03171,121740.0,121730.0,0.4491657]
[1752497108205,0.03171,121740.0,121730.0,0.3232057]
[1752497108413,0.03171,121740.0,121730.0,0.6632057]
[1752497108641,0.03171,121740.0,121730.0,0.7891657]
[1752497109269,0.03471,121740.0,121730.0,0.7891657]
[1752497110107,0.06081,121740.0,121730.0,0.7891657]
[1752497110310,0.06081,121740.0,121730.0,0.6632057]
[1752497110541,0.06081,121740.0,121730.0,0.7891657]
[1752497110977,0.06181,121740.0,121730.0,0.7891657]
[1752497112657,0.06181,121740.0,121730.0,0.6632057]
[1752497112885,0.004,121740.0,121730.0,1.73546973]
[1752497113125,0.004,121740.0,121730.0,3.22386387]
[1752497113362,0.004,121740.0,121730.0,3.32443775]
[1752497113588,0.004,121740.0,121730.0,3.25114564]
[1752497113865,0.004,121740.0,121730.0,3.34508852]
[1752497114078,0.004,121740.0,121730.0,3.11638566]
[1752497114502,0.004,121740.0,121730.0,3.41485852]
[1752497114911,0.004,121740.0,121730.0,3.24234566]
[1752497115113,0.004,121740.0,121730.0,3.37824866]
[1752497115325,0.004,121740.0,121730.0,3.21269466]
[1752497115533,0.004,121740.0,121730.0,3.33865466]
[1752497115748,0.004,121740.0,121730.0,3.28942466]
[1752497115968,0.004,121740.0,121730.0,3.23097066]
[1752497116214,0.004,121740.0,121730.0,3.12921466]
[1752497116435,0.004,121740.0,121730.0,3.21335666]
[1752497117127,0.004,121740.0,121730.0,3.35318966]
[1752497117585,0.004,121740.0,121730.0,3.32930466]
[1752497118254,0.004,121740.0,121730.0,3.35455966]
[1752497118460,0.004,121740.0,121730.0,3.32932766]
[1752497119400,0.004,121740.0,121730.0,3.35769866]
[1752497119815,0.004,121740.0,121730.0,3.23727566]
[1752497120175,0.004,121740.0,121730.0,3.11151866]
[1752497120645,0.004,121740.0,121730.0,3.14044566]
[1752497120822,0.004,121740.0,121730.0,3.11151866]
[1752497121031,0.004,121740.0,121730.0,3.12565466]
[1752497121471,0.004,121740.0,121730.0,3.00160766]
[1752497121877,0.004,121740.0,121730.0,2.92665066]
[1752497122904,0.004,121740.0,121730.0,0.89033366]
[1752497123320,0.004,121740.0,121730.0,3.04573366]
[1752497123542,0.004,121740.0,121730.0,2.72784666]
[1752497123682,0.004,121740.0,121730.0,2.84311166]
[1752497125048,0.004,121740.0,121730.0,3.10107566]
[1752497126078,0.004,121740.0,121730.0,3.07898266]
[1752497126289,0.004,121740.0,121730.0,2.64296866]
[1752497126500,0.03446,121740.0,121730.0,1.34372855]
[1752497126712,0.05966,121740.0,121730.0,1.20132255]
[1752497128384,0.05669,121740.0,121730.0,1.20132255]
[1752497129062,0.0546,121740.0,121730.0,1.20454255]
[1752497129232,0.0294,121740.0,121730.0,1.20454255]
[1752497129472,0.004,121740.0,121730.0,1.20454255]
[1752497130281,0.004,121740.0,121730.0,1.07858255]
[1752497130484,0.004,121740.0,121730.0,1.28476215]
[1752497130632,0.004,121740.0,121730.0,5.40201105]
[1752497130848,0.004,121740.0,121730.0,5.9059441]
[1752497131098,0.004,121740.0,121730.0,6.0319041]
[1752497131421,0.004,121740.0,121730.0,6.04011859]
[1752497131652,0.004,121740.0,121730.0,6.32276017]
[1752497131865,0.0503,121760.0,121740.0,0.35454085]
[1752497132082,0.05239,121760.0,121750.0,0.79317908]
[1752497132293,0.05239,121760.0,121750.0,0.6651657]
[1752497132510,0.05239,121760.0,121750.0,0.7911257]
[1752497133166,0.05636,121760.0,121750.0,0.7911257]
[1752497133587,0.05536,121760.0,121750.0,0.7911257]
[1752497134023,0.05239,121760.0,121750.0,0.6651657]
[1752497134226,0.0503,121760.0,121750.0,0.9883714]
[1752497134448,0.0503,121760.0,121750.0,1.1142914]
[1752497134664,0.0503,121760.0,121750.0,0.7910857]
[1752497134889,0.0543,121760.0,121750.0,0.7910857]
[1752497135091,0.05639,121760.0,121750.0,1.1142914]
[1752497135325,0.05739,121760.0,121750.0,1.12254274]
[1752497135971,0.05739,121760.0,121750.0,1.17177274]
[1752497136187,0.05739,121760.0,121750.0,1.12254274]
[1752497136391,0.0553,121760.0,121750.0,1.12576274]
[1752497136812,0.0553,121760.0,121750.0,0.99984274]
[1752497137040,0.0553,121760.0,121750.0,1.14030359]
[1752497137472,0.0553,121760.0,121750.0,1.13708359]
[1752497138348,0.0303,121760.0,121750.0,1.13708359]
[1752497138973,0.0545,121760.0,121750.0,1.13708359]
[1752497139618,0.0303,121760.0,121750.0,3.04287859]
[1752497139838,0.005,121760.0,121750.0,3.2391656]
[1752497140013,0.005,121760.0,121750.0,6.30793758]
[1752497140214,0.005,121760.0,121750.0,6.43385758]
[1752497140474,0.005,121760.0,121750.0,6.45847058]
[1752497140682,8.031e-05,121760.0,121750.0,6.48227307]
[1752497140890,8.031e-05,121760.0,121750.0,6.33255058]
[1752497141103,0.0022,121770.0,121760.0,0.34821287]
[1752497141325,0.002353,121770.0,121760.0,6.09042056]
[1752497141536,0.002353,121770.0,121760.0,6.23598591]
[1752497141743,0.002353,121770.0,121760.0,6.55919161]
[1752497141947,0.002353,121770.0,121760.0,6.56740408]
[1752497142368,0.002353,121770.0,121760.0,6.55097907]
[1752497142594,0.003353,121770.0,121760.0,6.3620831]
[1752497142802,0.005353,121770.0,121760.0,6.3620831]
[1752497143217,0.005353,121770.0,121760.0,6.37029597]
[1752497143435,0.005353,121770.0,121760.0,6.3620831]
[1752497143857,0.005353,121770.0,121760.0,6.37029597]
[1752497144292,0.005353,121770.0,121760.0,6.3620831]
[1752497144499,0.005353,121770.0,121760.0,6.40863346]
[1752497144713,0.005353,121770.0,121760.0,6.55097873]
[1752497144920,0.005353,121770.0,121760.0,6.57995909]
[1752497145125,0.005353,121770.0,121760.0,6.90271909]
[1752497145559,0.0002,121780.0,121770.0,0.52066839]
[1752497145769,0.0002,121780.0,121770.0,6.22453779]
[1752497145997,0.0002,121780.0,121770.0,6.21954579]
[1752497146143,0.0002,121780.0,121770.0,6.0634874]
[1752497146985,0.0246,121780.0,121770.0,6.0634874]
[1752497147593,0.0246,121780.0,121770.0,5.7316996]
[1752497147816,0.0246,121780.0,121770.0,5.74091173]
[1752497148016,0.0246,121780.0,121770.0,5.7326996]
[1752497148320,0.0002,121780.0,121770.0,5.7244874]
[1752497149193,0.0247,121780.0,121770.0,5.7244874]
[1752497149393,0.0247,121780.0,121770.0,5.89694359]
[1752497149595,0.0247,121780.0,121770.0,6.0644874]
[1752497150050,0.0247,121780.0,121770.0,4.9832924]
[1752497150255,0.0247,121780.0,121770.0,4.9722046]
[1752497150692,0.0247,121780.0,121770.0,4.8380724]
[1752497150842,0.0247,121780.0,121770.0,4.9639924]
[1752497151048,0.0247,121780.0,121770.0,4.98037673]
[1752497151244,0.0247,121780.0,121770.0,4.9721646]
[1752497151668,0.0247,121780.0,121770.0,4.98037673]
[1752497151900,0.0247,121780.0,121770.0,5.14462072]
[1752497152079,0.0247,121780.0,121770.0,5.14462079]
[1752497152645,0.0002,121780.0,121770.0,5.16104458]
[1752497152877,0.0002,121780.0,121770.0,5.15283279]
[1752497153105,0.0002,121780.0,121770.0,5.16104472]
[1752497153339,0.0002,121780.0,121770.0,5.02695279]
[1752497153586,0.0002,121780.0,121770.0,4.77347765]
[1752497154039,0.0002,121780.0,121770.0,4.76526579]
[1752497154309,0.0002,121780.0,121770.0,4.77347772]
[1752497154546,0.0002,121780.0,121770.0,4.77347765]
[1752497154769,0.0002,121780.0,121770.0,4.78168938]
[1752497155234,0.0002,121780.0,121770.0,6.36563934]
[1752497155473,0.0002,121780.0,121770.0,6.29265934]
[1752497155689,0.0002,121780.0,121770.0,6.41853934]
[1752497155906,0.0002,121780.0,121770.0,6.46776934]
[1752497156429,0.0002,121780.0,121770.0,6.34188934]
[1752497156759,0.0002,121780.0,121770.0,6.44116934]
[1752497157194,0.0002,121780.0,121770.0,1.51980334]
[1752497157427,0.0002,121780.0,121770.0,6.44116934]
[1752497158484,0.0002,121780.0,121770.0,6.46716934]
[1752497158702,0.0002,121780.0,121770.0,6.44116934]